Cogmind - Beta 10.2 @@@ ROGUE MODE // 2021.03.20 @ 12:49:32 Player: MoonDog Result: Destroyed by G-67 Veteran with Electrolaser Performance ------------- Evolutions (3) 1500 Regions Visited (10) 2000 Robots Destroyed (14) 70 Value Destroyed (529) 529 Prototype IDs (16) 320 Alien Tech Used (0) 0 Bonus (2453) 2453 TOTAL SCORE: 6872 Bonus ------- Follower Combat Kills 39 Met Imprinter 300 Was Imprinted 300 Destroyed Z-Imprinter 1000 Triggered Deep Caves Wall 500 Exposed GOLEM Chamber 500 Friendly Fire -186 Cogmind --------- Core Integrity 0/700 Matter 300/300 Energy 681/1100 System Corruption 2% Temperature Cool (21) Movement Walking (170) Ox1 Location -6/Proximity Caves Parts ------- > --- POWER (2) -------- Assembled Flux Generator > --- PROPULSION (3) --- Assembled Alloy Leg Assembled Alloy Leg > --- UTILITY (6) ------ Assembled Nanovents Assembled Nanovents Assembled Biocell Array Assembled Suspension Frame GOLEM Unit > --- WEAPON (2) ------- Assembled Focal Cannon Assembled Focal Cannon > --- INVENTORY (4) ---- Mobile Assembly Unit Peak State ------------ > --- POWER ------------ Assembled Flux Generator > --- PROPULSION ------- Assembled Alloy Leg Assembled Alloy Leg Cooled VTOL Module > --- UTILITY ---------- Assembled Nanovents Assembled Nanovents Assembled Biocell Array Assembled Suspension Frame GOLEM Unit > --- WEAPON ----------- Assembled Focal Cannon Spear > --- INVENTORY -------- Advanced Sensor Array Force Booster Force Booster Hacking Drone Bay [Rating: 107] Favorites ----------- Power Micro Nuclear Core Engine Makeshift Power Source Power Core Micro Nuclear Core Reactor Assembled Flux Generator Propulsion Assembled Alloy Leg Leg Assembled Alloy Leg Wheel Wheel Flight Unit Improved Cesium-ion Thruster Utility Hacking Suite Device GOLEM Unit Storage Assembled Biocell Array Processor Advanced Signal Interpreter Hackware Hacking Suite Weapon Spear Energy Gun EM Pulse Gun Energy Cannon Assembled Focal Cannon Ballistic Gun Light Assault Rifle Impact Weapon Maul Slashing Weapon Greatsword Piercing Weapon Spear Build | -11 -10 -10 -9 -8 -7 -7 -7 -7 -7 -6 ------- Run | Scr Mat Min Mat Mat Fac Low Low Zio Dee Pro Slots Evolved 6 | . . . 2 2 2 . . . . . Power 1 | . . . . . 1 . . . . . Propulsion 1 | . . . . 1 . . . . . . Utility 4 | . . . 2 1 1 . . . . . Weapon . | . . . . . . . . . . . Parts Attached 52 | 5 5 2 3 . 18 7 . 4 8 . Power 9 | . 1 1 1 . 3 1 . 1 1 . Engine 4 | . 1 1 1 . . . . 1 . . Core 4 | . . . . . 3 1 . . . . Reactor 1 | . . . . . . . . . 1 . Propulsion 8 | 2 2 1 . . 3 . . . . . Treads . | . . . . . . . . . . . Leg . | . . . . . . . . . . . Wheel 2 | 2 . . . . . . . . . . Hover . | . . . . . . . . . . . Flight 6 | . 2 1 . . 3 . . . . . Utility 20 | . 2 . 1 . 6 3 . 2 6 . Device 9 | . . . . . 2 . . 1 6 . Storage . | . . . . . . . . . . . Processor 4 | . . . 1 . 2 . . 1 . . Hackware 7 | . 2 . . . 2 3 . . . . Protection . | . . . . . . . . . . . Artifact . | . . . . . . . . . . . Weapon 15 | 3 . . 1 . 6 3 . 1 1 . Energy Gun 1 | 1 . . . . . . . . . . Energy Cannon . | . . . . . . . . . . . Ballistic Gun 3 | 2 . . 1 . . . . . . . Ballistic Cannon . | . . . . . . . . . . . Launcher . | . . . . . . . . . . . Special Weapon . | . . . . . . . . . . . Impact Weapon 4 | . . . . . 4 . . . . . Slashing Weapon 2 | . . . . . . 1 . 1 . . Piercing Weapon 5 | . . . . . 2 2 . . 1 . Special Melee Weapon . | . . . . . . . . . . . Unidentified Prototypes 4 | . . . 1 . 1 . . . 2 . Parts Lost 19 | . . 4 1 2 1 . . . 11 . Power 5 | . . 1 1 . . . . . 3 . Propulsion 5 | . . 1 . 2 . . . . 2 . Utility 4 | . . . . . 1 . . . 3 . Weapon 5 | . . 2 . . . . . . 3 . Highest Loss Streak 4 | . . 4 1 1 1 . . . 3 . Average Slot Usage (%) 76 | . 77 88 63 48 71 96 92 92 73 72 Engine 1 | . 3 11 8 . . . . 5 . . Core 3 | . . . . . 6 15 15 8 . . Reactor 2 | . . . . . . . . . 5 7 Leg 5 | . . . . . . . . . 11 15 Flight 12 | . 22 28 22 12 11 23 23 23 5 . Device 15 | . . . . . 6 15 15 15 25 26 Storage 1 | . . . . . . . . . 3 7 Processor 7 | . . . 10 9 13 15 15 18 3 . Hackware 10 | . 15 28 22 18 22 15 15 11 2 . Energy Gun 1 | . 14 8 . . . . . . . . Energy Cannon 3 | . . . . . . . . . 5 15 Ballistic Gun 1 | . 14 11 . 9 . . . . . . Impact Weapon 1 | . . . . . 5 . . . . . Piercing Weapon 4 | . . . . . 2 11 7 5 5 . Naked Turns . | . . . . . . . . . . . Heaviest Build 74 | 3 6 6 5 3 16 21 18 19 73 74 Greatest Support 70 | 3 8 8 8 8 19 21 19 19 70 70 Greatest Overweight (x) 2 | . . . . . 2 1 . . 2 1 Average Overweight (x) . | . . . . . . . . . . 1 Largest Inventory Capacity 4 | 4 4 4 4 4 4 4 4 4 4 4 Average Capacity 4 | 4 4 4 4 4 4 4 4 4 4 4 Most Carried 4 | 3 4 4 4 4 4 4 4 4 4 4 Average Carried 3 | 2 3 3 3 4 3 3 4 3 3 4 Final Capacity 4 | 4 4 4 4 4 4 4 4 4 4 4 Final Carried 4 | 3 4 3 4 4 4 4 4 3 4 4 Class Distribution -------------------- 33% | Golem 27% | Hacker-Scout 13% | Mutant 12% | Hacker-Mutant 6% | Sprinter 4% | Hacker-Assassin Dominant Class ---------------- Mutant | -10/Materials Hacker-Mutant | -10/Mines Hacker-Mutant | -9/Materials Hacker-Mutant | -8/Materials Hacker-Scout | -7/Factory Hacker-Assassin | -7/Lower Caves Hacker-Scout | -7/Lower Caves Hacker-Scout | -7/Zion Golem | -7/Deep Caves Golem | -6/Proximity Caves Resources | -11 -10 -10 -9 -8 -7 -7 -7 -7 -7 -6 ----------- Run | Scr Mat Min Mat Mat Fac Low Low Zio Dee Pro Matter Collected 684 | 246 44 . . . 170 118 . 31 75 . Remotely . | . . . . . . . . . . . Salvage Created 1598 | . 53 . . . 48 162 . . 1259 76 Parts 56 | . 9 . . . 2 3 . . 41 1 Haulers Intercepted . | . . . . . . . . . . . Recyclers Shooed . | . . . . . . . . . . . Parts Field Recycled . | . . . . . . . . . . . Retrieved Matter . | . . . . . . . . . . . Parts Self-Destructed 11 | . . . . . . 9 1 . . 1 Prevented 3 | . . . . . . . 3 . . . Kills | -11 -10 -10 -9 -8 -7 -7 -7 -7 -7 -6 ------- Run | Scr Mat Min Mat Mat Fac Low Low Zio Dee Pro Combat Hostiles Destroyed 40 | . . . . . . . . . 37 3 Melee 29 | . . . . . . . . . 29 . Cannons 10 | . . . . . . . . . 7 3 Classes Destroyed 7 | . 1 . . . 1 . . . 4 1 Worker 1 | . . . . . 1 . . . . . Operator 4 | . 3 . . . 1 . . . . . Swarmer 3 | . . . . . . . . . . 3 Z-Light 2 | . . . . . . . . . 2 . Assembler 2 | . . . . . . . . . 2 . Assembled 30 | . . . . . . . . . 30 . Golem 4 | . . . . . . . . . 4 . Best Kill Streak 14 | . 1 . . . 1 . . . 14 3 Combat Bots Only 12 | . . . . . . . . . 12 3 Max Kills in Single Turn 1 | . 1 . . . 1 . . . 1 1 Gunslinging . | . . . . . . . . . . . Exploded . | . . . . . . . . . . . Melee 1 | . . . . . . . . . 1 . Uniques/NPCs Destroyed 1 | . . . . . . . . . 1 . Z-Imprinter (-7/Deep Caves) Combat | -11 -10 -10 -9 -8 -7 -7 -7 -7 -7 -6 -------- Run | Scr Mat Min Mat Mat Fac Low Low Zio Dee Pro Damage Taken 3750 | . 63 147 33 256 151 . 32 . 2582 486 Core 898 | . 7 17 10 155 75 . 32 . 494 108 Absorbed by Shields . | . . . . . . . . . . . Core Remaining (%) 89 | 100 . 90 97 71 . . . . . . Volleys Fired 31 | . 4 . . 2 . . . . 15 10 Largest 2 | . 1 . . 1 . . . . 2 2 Hottest 50 | . 40 . . 23 . . . . 50 50 Shots Fired 52 | . 4 . . 2 . . . . 26 20 Gun 6 | . 4 . . 2 . . . . . . Cannon 46 | . . . . . . . . . 26 20 Launcher . | . . . . . . . . . . . Special . | . . . . . . . . . . . Kinetic 2 | . . . . 2 . . . . . . Thermal 46 | . . . . . . . . . 26 20 Explosive . | . . . . . . . . . . . Electromagnetic 4 | . 4 . . . . . . . . . Robot Hit Streak 8 | . 4 . . 1 . . . . 7 8 Robot Miss Streak 4 | . . . . 1 . . . . 2 4 Penetration Max . | . . . . . . . . . . . Secondary Targets . | . . . . . . . . . . . Shots Hit Robots 99 | . 4 . . 2 2 3 . . 76 12 Core Hits 71 | . 3 . . 1 1 3 . . 59 4 Critical Hits 7 | . . . . . . . . . 7 . Critical Kills 6 | . . . . . . . . . 6 . Critical Parts Destroyed . | . . . . . . . . . . . Melee Attacks 125 | . . . . . 14 4 2 11 94 . Impact 7 | . . . . . 7 . . . . . Slashing 15 | . . . . . . . . 10 5 . Piercing 103 | . . . . . 7 4 2 1 89 . Sneak Attacks 2 | . . . . . 2 . . . . . Combat Hostiles . | . . . . . . . . . . . Follow-up Attacks . | . . . . . . . . . . . Damage Inflicted 3962 | . 67 . . 10 184 252 . . 2884 565 Guns 77 | . 67 . . 10 . . . . . . Cannons 1083 | . . . . . . . . . 518 565 Explosions . | . . . . . . . . . . . Melee 2774 | . . . . . 184 252 . . 2338 . Ramming 28 | . . . . . . . . . 28 . Kinetic 10 | . . . . 10 . . . . . . Thermal 1083 | . . . . . . . . . 518 565 Explosive . | . . . . . . . . . . . Electromagnetic 67 | . 67 . . . . . . . . . Impact 95 | . . . . . 95 . . . . . Slashing 289 | . . . . . . . . . 289 . Piercing 2390 | . . . . . 89 252 . . 2049 . Highest Corruption 2 | . . . . . . . . . 2 2 Average Corruption 2 | . . . . . . . . . 2 2 Corruption Purged . | . . . . . . . . . . . Effects 8 | . . . . . . . . . 5 3 Message Errors 6 | . . . . . . . . . 4 2 Energy Discharges 2 | . . . . . . . . . 1 1 Overload Shots . | . . . . . . . . . . . Overflow Damage 195 | . . . . . 70 . . . 70 55 Projectiles 95 | . . . . . . . . . 40 55 Explosions . | . . . . . . . . . . . Melee 100 | . . . . . 70 . . . 30 . Knockbacks 1 | . . . . . 1 . . . . . Impact 1 | . . . . . 1 . . . . . Kinetic . | . . . . . . . . . . . Secondary . | . . . . . . . . . . . Self-Inflicted Damage 8 | . . . . . . . . . 8 . Shots . | . . . . . . . . . . . Rammed 5 | . . . . . . . . . 5 . Targets Rammed 9 | . . . . . . . . . 9 . Kicked 4 | . . . . . . . . . 4 . Crushed . | . . . . . . . . . . . Highest Temperature 452 | . 15 . . . 3 36 8 300 452 . Average Temperature 119 | . 6 . . . 3 17 6 111 169 . Received Heat Transfer 1545 | . 6 . 18 90 30 . 18 . 1305 78 Effects 5 | . . . . . . . . . 5 . Shutdowns 1 | . . . . . . . . . 1 . Energy Bleed 1 | . . . . . . . . . 1 . Interference 3 | . . . . . . . . . 3 . Siege Activations . | . . . . . . . . . . . Robots Corrupted . | . . . . . . . . . . . Combat Hostiles . | . . . . . . . . . . . Parts Fried 3 | . 1 . . . 2 . . . . . Impact Corruptions 3 | . . . . . 2 . . . 1 . Robots Melted . | . . . . . . . . . . . Combat Hostiles . | . . . . . . . . . . . Parts Melted . | . . . . . . . . . . . Heat Transferred 600 | . . . . . . . . . 300 300 Parts Sabotaged . | . . . . . . . . . . . Parts Stolen . | . . . . . . . . . . . Parts Stripped . | . . . . . . . . . . . Power Chain Reactions . | . . . . . . . . . . . Missiles Intercepted . | . . . . . . . . . . . Alert | -11 -10 -10 -9 -8 -7 -7 -7 -7 -7 -6 ------- Run | Scr Mat Min Mat Mat Fac Low Low Zio Dee Pro Peak Influence 209 | . 50 12 101 148 209 . . . . . Initial 62 | . . . . 14 62 . . . . . Average 60 | . 38 . 34 72 77 . . . . . Maximum Alert Level 1 | . . . . . 1 . . . . . Low Security (%) 99 | 100 100 100 100 100 98 . . . . . Level 1 . | . . . . . 1 . . . . . Level 2 . | . . . . . . . . . . . Level 3 . | . . . . . . . . . . . Level 4 . | . . . . . . . . . . . Level 5 . | . . . . . . . . . . . High Security . | . . . . . . . . . . . Max Security . | . . . . . . . . . . . Squads Dispatched 7 | . 2 . 1 2 2 . . . . . Investigation 2 | . 1 . . . 1 . . . . . Extermination 1 | . . . . . 1 . . . . . Reinforcement 4 | . 1 . 1 2 . . . . . . Assault . | . . . . . . . . . . . Garrison . | . . . . . . . . . . . Intercept . | . . . . . . . . . . . Construction Impeded . | . . . . . . . . . . . Haulers Reinforced . | . . . . . . . . . . . Stealth | -11 -10 -10 -9 -8 -7 -7 -7 -7 -7 -6 --------- Run | Scr Mat Min Mat Mat Fac Low Low Zio Dee Pro Distress Signals 1 | . . . . . 1 . . . . . Communications Jammed . | . . . . . . . . . . . Distress Signals . | . . . . . . . . . . . Times Spotted 133 | . 11 22 10 13 17 1 5 . 47 7 Peak Tracking Total 20 | . 7 20 7 9 6 1 4 . 12 4 Tactical Retreats 21 | . . 1 1 3 5 1 2 . 8 . Traps | -11 -10 -10 -9 -8 -7 -7 -7 -7 -7 -6 ------- Run | Scr Mat Min Mat Mat Fac Low Low Zio Dee Pro Traps Triggered . | . . . . . . . . . . . Indirectly . | . . . . . . . . . . . Trap Hack Attempts . | . . . . . . . . . . . Triggered . | . . . . . . . . . . . Disarmed . | . . . . . . . . . . . Reprogrammed . | . . . . . . . . . . . Reused . | . . . . . . . . . . . Traps Extracted . | . . . . . . . . . . . Installed . | . . . . . . . . . . . Triggered 3 | . . . . . . 1 2 . . . Machines | -11 -10 -10 -9 -8 -7 -7 -7 -7 -7 -6 ---------- Run | Scr Mat Min Mat Mat Fac Low Low Zio Dee Pro Machines Disabled 6 | . . . . . . . . 4 2 . Max in Single Turn 1 | . . . . . . . . 1 1 . Garrison Access 3 | . . . . . 3 . . . . . Machines Sabotaged . | . . . . . . . . . . . Garrisons Compromised . | . . . . . . . . . . . Overloaded Fab Kills . | . . . . . . . . . . . Fab Network Shutdowns . | . . . . . . . . . . . Hacking | -11 -10 -10 -9 -8 -7 -7 -7 -7 -7 -6 --------- Run | Scr Mat Min Mat Mat Fac Low Low Zio Dee Pro Machines Accessed 36 | . 4 . 5 6 19 1 1 . . . Terminals 24 | . 4 . 5 6 9 . . . . . Fabricators 5 | . . . . . 5 . . . . . Repair Stations . | . . . . . . . . . . . Recycling Units 1 | . . . . . 1 . . . . . Scanalyzers 1 | . . . . . 1 . . . . . Garrison Access 3 | . . . . . 3 . . . . . Total Hacks 112 | . 20 . 16 29 45 1 1 . . . Successful 83 | . 12 . 15 23 31 1 1 . . . Failed 28 | . 8 . 1 6 13 . . . . . Catastrophic . | . . . . . . . . . . . Database Lockouts 1 | . . . . . 1 . . . . . Manual 72 | . 15 . 15 24 18 . . . . . Terminals 90 | . 20 . 16 29 25 . . . . . Fabricators 10 | . . . . . 10 . . . . . Repair Stations . | . . . . . . . . . . . Recycling Units 2 | . . . . . 2 . . . . . Scanalyzers 5 | . . . . . 5 . . . . . Garrison Access 3 | . . . . . 3 . . . . . Terminal Hacks 27 | . 3 . 4 13 5 1 1 . . . Part Schematic 8 | . . . . 6 2 . . . . . Robot Analysis 1 | . 1 . . . . . . . . . Prototype ID Bank 2 | . 1 . . 1 . . . . . . Open Door 2 | . . . . . . 1 1 . . . Level Access Points 1 | . . . . 1 . . . . . . Branch Access Points 1 | . 1 . . . . . . . . . Emergency Access Points 1 | . . . . 1 . . . . . . Terminal Index 3 | . . . 1 1 1 . . . . . Fabricator Index 1 | . . . . . 1 . . . . . Unreport Threat 2 | . . . 1 . 1 . . . . . Locate Traps 1 | . . . 1 . . . . . . . Recall Reinforcements 1 | . . . 1 . . . . . . . Registered Components 2 | . . . . 2 . . . . . . Registered Prototypes 1 | . . . . 1 . . . . . . Fabricator Hacks 7 | . . . . . 7 . . . . . Load Schematic 4 | . . . . . 4 . . . . . Build 3 | . . . . . 3 . . . . . Repair Station Hacks . | . . . . . . . . . . . Recycling Unit Hacks 2 | . . . . . 2 . . . . . Report Inventory 1 | . . . . . 1 . . . . . Retrieve Components 1 | . . . . . 1 . . . . . Scanalyzer 4 | . . . . . 4 . . . . . Insert Component 2 | . . . . . 2 . . . . . Analyze 2 | . . . . . 2 . . . . . Garrison Access Hacks 3 | . . . . . 3 . . . . . Seal Access 3 | . . . . . 3 . . . . . Unauthorized Hacks 40 | . 9 . 11 10 10 . . . . . Terminals 39 | . 9 . 11 10 9 . . . . . Track 11 | . 3 . 5 2 1 . . . . . Assimilate 7 | . 2 . 2 1 2 . . . . . Botnet 18 | . 3 . 4 5 6 . . . . . Detonate 1 | . . . . 1 . . . . . . Operators 2 | . 1 . . 1 . . . . . . Fabricators 1 | . . . . . 1 . . . . . Siphon 1 | . . . . . 1 . . . . . Repair Stations . | . . . . . . . . . . . Recycling Units . | . . . . . . . . . . . Scanalyzers . | . . . . . . . . . . . Garrison Access . | . . . . . . . . . . . Data Cores Recovered . | . . . . . . . . . . . Used . | . . . . . . . . . . . Hacking Detections 30 | . 4 . 5 6 15 . . . . . Full Trace Events 3 | . 2 . . . 1 . . . . . Feedback Events . | . . . . . . . . . . . Feedback Blocked . | . . . . . . . . . . . Robot Schematics Acquired . | . . . . . . . . . . . Robots Built . | . . . . . . . . . . . Matter . | . . . . . . . . . . . Time . | . . . . . . . . . . . Total Robot Build Rating . | . . . . . . . . . . . Part Schematics Acquired 9 | . . . . 6 3 . . . . . Parts Built 5 | . . . . . 5 . . . . . Matter 482 | . . . . . 482 . . . . . Time 106 | . . . . . 106 . . . . . Total Part Build Rating 19 | . . . . . 19 . . . . . Parts Repaired . | . . . . . . . . . . . Time . | . . . . . . . . . . . Parts Recycled . | . . . . . . . . . . . Recycled Matter . | . . . . . . . . . . . Retrieved Matter . | . . . . . . . . . . . Retrieved Components 3 | . . . . . 3 . . . . . Parts Scanalyzed 1 | . . . . . 1 . . . . . Part Schematics Acquired 1 | . . . . . 1 . . . . . Parts Damaged . | . . . . . . . . . . . Bothacking | -11 -10 -10 -9 -8 -7 -7 -7 -7 -7 -6 ------------ Run | Scr Mat Min Mat Mat Fac Low Low Zio Dee Pro Used RIF Installer . | . . . . . . . . . . . Robots Hacked . | . . . . . . . . . . . Non-combat . | . . . . . . . . . . . Combat . | . . . . . . . . . . . Robot Hacks Applied . | . . . . . . . . . . . Relay Couplers Released . | . . . . . . . . . . . Robots Rewired . | . . . . . . . . . . . Allies Hacked . | . . . . . . . . . . . Hacks Repelled . | . . . . . . . . . . . Allies | -11 -10 -10 -9 -8 -7 -7 -7 -7 -7 -6 -------- Run | Scr Mat Min Mat Mat Fac Low Low Zio Dee Pro Total Allies 14 | . 2 3 2 1 2 . . 4 . . Largest Group 4 | . 2 3 2 1 1 . . 4 2 . Highest-Rated Group 152 | . 20 40 20 26 26 . . 152 74 . Highest-Rated Ally 41 | . 10 16 10 26 26 . . 41 38 . Total Orders . | . . . . . . . . . . . Ally Attacks 5 | . . 5 . . . . . . . . Total Damage 74 | . . 74 . . . . . . . . Kills 2 | . . 2 . . . . . . . . Allies Corrupted . | . . . . . . . . . . . Allies Melted . | . . . . . . . . . . . Intel | -11 -10 -10 -9 -8 -7 -7 -7 -7 -7 -6 ------- Run | Scr Mat Min Mat Mat Fac Low Low Zio Dee Pro Robot Analysis Total 1 | . 1 . . . . . . . . . Derelict Logs Recovered 3 | . . . . . . 1 2 . . . Drone Launches . | . . . . . . . . . . . Drone Recoveries . | . . . . . . . . . . . Exploration | -11 -10 -10 -9 -8 -7 -7 -7 -7 -7 -6 ------------- Run | Scr Mat Min Mat Mat Fac Low Low Zio Dee Pro Turns Passed 4698 | 34 462 52 123 90 975 325 204 357 1677 399 Spaces Moved 5916 | 47 317 102 230 198 2120 540 492 922 733 215 Core 402 | 47 141 . . 6 208 . . . . . Treads . | . . . . . . . . . . . Legs 562 | . . . . . . . . . 347 215 Wheels . | . . . . . . . . . . . Hover . | . . . . . . . . . . . Flight 4952 | . 176 102 230 192 1912 540 492 922 386 . Fastest Speed 27 | 50 37 37 37 37 30 27 30 30 30 170 Average Speed 48 | 50 42 37 37 38 37 50 30 30 90 170 Slowest Speed 170 | 50 50 37 37 50 150 100 30 30 170 170 Overloaded Moves 71 | . . . . . . 69 . . 2 . Propulsion Burnouts . | . . . . . . . . . . . Robots Hopped 27 | . 3 3 1 7 13 . . . . . Cave-ins Triggered . | . . . . . . . . . . . Exploration Rate (%) 43 | 3 37 21 29 25 44 67 64 91 61 40 Regions Visited 10 Branch Regions 6 Pre-discovered Areas 1 | . . . . . . . 1 . . . Known Exits Taken 6 | . 1 . . 1 1 1 1 1 . . Unknown Exits Taken 4 | 1 . 1 1 . . . . . 1 . Scrap Searched 9 | . . . . . . 3 2 4 . . Spaces Dug 9 | . . . . . 7 . 2 . . . Terrain Destroyed 23 | . . . . . 7 . 2 . 6 8 Melee 9 | . . . . . 7 . 2 . . . Projectile 14 | . . . . . . . . . 6 8 AOE . | . . . . . . . . . . . Terrain Rammed . | . . . . . . . . . . . Walls Destroyed . | . . . . . . . . . . . Machines Disabled . | . . . . . . . . . . . Actions | -11 -10 -10 -9 -8 -7 -7 -7 -7 -7 -6 --------- Run | Scr Mat Min Mat Mat Fac Low Low Zio Dee Pro Total 7456 | 54 636 112 265 201 2273 583 545 980 1576 231 Wait 1288 | . 304 12 32 9 116 27 51 39 694 4 Move 5853 | 46 311 95 227 183 2093 539 491 921 732 215 Hop 26 | . 2 3 1 7 13 . . . . . Pick Up 23 | 2 5 . 1 . 9 2 . 2 2 . Fast Attach 33 | 5 4 1 2 . 12 3 . 1 5 . Attach 15 | . 1 1 1 . 5 2 . 2 3 . Detach 25 | 1 . . 1 . 3 1 . 1 16 2 Swap 4 | . . . . . 1 2 . 1 . . Drop 28 | . 5 . . . 11 3 1 2 6 . Fire 31 | . 4 . . 2 . . . . 15 10 Melee 121 | . . . . . 10 4 2 11 94 . Ram . | . . . . . . . . . . . Kick 9 | . . . . . . . . . 9 . Crush . | . . . . . . . . . . . Escape Stasis . | . . . . . . . . . . . Rewire . | . . . . . . . . . . . Trap . | . . . . . . . . . . . Miscellaneous . | . . . . . . . . . . . Route ------- -11/Scrapyard -10/Materials (discovered 2 exits: *Min x2) -10/Mines -9/Materials (discovered 2 exits: *Mat / [*Sto]) -8/Materials (discovered 3 exits: *Fac x3) -7/Factory (discovered 4 exits: *Fac x3 / *Low) -7/Lower Caves -7/Lower Caves (discovered 2 exits: *Fac / *Zio) -7/Zion (discovered 2 exits: *Dee / *Pro) -7/Deep Caves -6/Proximity Caves History --------- Turn | Location | Event 18 | -11/Scrapyard | Discovered new exit (range 16) 35 | -11/Scrapyard | Entered Materials 109 | -10/Materials | Identified exit to Mines 300 | -10/Materials | Build established: Mutant 497 | -10/Materials | Entered Mines 501 | -10/Mines | Assembled infested the area 516 | -10/Mines | Assisted by bots powering up and referring to "LRC-V3" 538 | -10/Mines | Discovered new exit (range 8) 549 | -10/Mines | Entered Materials 549 | -9/Materials | Evolved 2 slots: Utility x2 561 | -9/Materials | Lost 4 parts (1p1n2w) 646 | -9/Materials | Discovered new exit (range 15) 653 | -9/Materials | Discovered new exit (range 15) 672 | -9/Materials | Entered another Materials area 672 | -8/Materials | Evolved 2 slots: Propulsion x1, Utility x1 686 | -8/Materials | Build established: Hacker-Mutant 711 | -8/Materials | Identified exit to Factory 762 | -8/Materials | Entered Factory 762 | -7/Factory | Evolved 2 slots: Power x1, Utility x1 830 | -7/Factory | Fabricated Adv. Sensor Array (x1) 1015 | -7/Factory | Discovered new exit (range 16) 1031 | -7/Factory | Identified exit to Factory 1244 | -7/Factory | Discovered exit to Factory (range 17) 1249 | -7/Factory | Build established: Hacker-Scout 1276 | -7/Factory | Discovered new exit (range 11) 1430 | -7/Factory | Central database locked down 1536 | -7/Factory | Fabricated Spear (x2) 1621 | -7/Factory | Discovered exit to Factory (range 20) 1672 | -7/Factory | Fabricated Force Booster? 1737 | -7/Factory | Identified exit to Lower Caves 1737 | -7/Factory | Entered Lower Caves 1814 | -7/Lower Caves | Learned Factory garrison access intel 1865 | -7/Lower Caves | Encountered a Warlord checkpoint 2052 | -7/Lower Caves | Discovered new exit (range 10) 2061 | -7/Lower Caves | Identified exit to Lower Caves 2062 | -7/Lower Caves | Entered another Lower Caves area 2075 | -7/Lower Caves | Learned Factory stockpile data 2097 | -7/Lower Caves | Discovered exit to Factory (range 18) 2232 | -7/Lower Caves | Encountered a Warlord checkpoint 2263 | -7/Lower Caves | Discovered new exit (range 9) 2265 | -7/Lower Caves | Identified exit to Zion 2266 | -7/Lower Caves | Entered Zion 2276 | -7/Zion | Given A8's code to call for help 2293 | -7/Zion | Discovered new exit (range 12) 2298 | -7/Zion | Identified exit to Proximity Caves 2451 | -7/Zion | Given the Hacking Drone Bay 2452 | -7/Zion | Found Prototype Device 2484 | -7/Zion | Imprinted 2486 | -7/Zion | Declared Zion's savior 2600 | -7/Zion | Discovered new exit (range 3) 2600 | -7/Zion | Saw the warning signs outside the Deep Caves entrance 2601 | -7/Zion | Identified exit to Deep Caves 2623 | -7/Zion | Entered Deep Caves 2623 | -7/Deep Caves | Accompanied by 2 allies 2705 | -7/Deep Caves | Attacked by Z-Imprinter 2721 | -7/Deep Caves | Destroyed Z-Imprinter 2754 | -7/Deep Caves | Lost 3 parts (2p1w) 2762 | -7/Deep Caves | Z-Facility disabled 2814 | -7/Deep Caves | Spotted as-77882 2836 | -7/Deep Caves | Destroyed as-77882 2840 | -7/Deep Caves | Found GOLEM Unit 2866 | -7/Deep Caves | Lost 3 parts (1n2u) 3386 | -7/Deep Caves | Triggered Deep Caves wall 3410 | -7/Deep Caves | Build established: Golem 3435 | -7/Deep Caves | Core integrity fell below 50% 3445 | -7/Deep Caves | Destroyed 7 combat bots 3492 | -7/Deep Caves | Spotted AS-36903 3505 | -7/Deep Caves | Spotted AS-33057 3528 | -7/Deep Caves | Destroyed AS-36903 3532 | -7/Deep Caves | Destroyed 12 combat bots 3541 | -7/Deep Caves | Destroyed AS-33057 3581 | -7/Deep Caves | Lost 3 parts (1p1u1w) 3738 | -7/Deep Caves | Identified Hacking Drone Bay 3751 | -7/Deep Caves | Found Mobile Assembly Unit 3776 | -7/Deep Caves | Exposed GOLEM chamber 3781 | -7/Deep Caves | Found GOLEM Unit 3788 | -7/Deep Caves | Found GOLEM Unit 4005 | -7/Deep Caves | Core integrity fell below 20% 4291 | -7/Deep Caves | Discovered new exit (range 6) 4300 | -7/Deep Caves | Entered Proximity Caves 4699 | -6/Proximity Caves | Destroyed by G-67 Veteran with Electrolaser Last Messages --------------- 04272_ 3V7WVMNGD%X &L7SIAKGU7BV%>L5,N8J %| 04291_ EXIT=FOUND 04296_ T YJ2D/EZ&D1/9DMH%T9WIS,S&|V LOCATION=UNKNOWN GOAL=ESCAPE 04370_ S-27 Virus destroyed. 04379_ Destroyed VTOL Module. 04385_ S-27 Virus destroyed. 04387_ VTOL Module fries itself beyond repair. 04413_ Discarded Asb. Suspension Frame. 04414_ GOLEM Unit beginning Asb. Nanovents integration. 04414_ Asb. Nanovents integration complete. 04439_ S/KLSGKVXXPLVAX,N7>ZLENMKIR0WHABQU 04489_ Discarded GOLEM Unit. 04490_ GOLEM Unit beginning Asb. Nanovents integration. 04491_ Asb. Nanovents integration complete. 04492_ GOLEM Unit beginning Asb. Suspension Frame integration. 04509_ Asb. Suspension Frame integration complete. 04509_ System corrupted: Energy discharge (-418). 04549_ XAM>XWE7FIEO=DF:VXYUFYAI|IPGEM|A2H Map ----- +----------------------------------------------------+ | ?????????????????? #????????????????????????? | | ????????????????? #????????????????????????? | | ????????????????? #????????????????????????? | | ????????####????# ##???????????????????????? | | ####???## ##### ###?????????????????????? | | ##### #?????????????????????? | | #?????????????????????? | | ## ### #??????????????????????? | | ### #### #???????????????????????????????? | | #####?####??# ##???????????????????????????????? | | ???????????## #####?????????????????????????????? | | ??????????## ## ##????????????????????????????? | | ?????????## ## ##???????????????????????????? | | ???????### #???????????????????????????? | | ??????## #???????????????????????????? | | ??????# #???????????????????????????? | | ??????###### #???????????????????????????? | | ?????####### ##??????????????????????????? | | ????# ##?????????????????????????? | | ????## #?????????????????????????? | | ?????# ### #?????????????????????????? | | ?? #### ######????????????????????? | | ?? ### ## #????????????????????? | | ? ### #????????????????????? | | ?? ## #????????????????????? | | ??# ### @###????????????????????? | | ???#???## ;#??????????????????????? | | ????????### ### g##??????????????????????? | | ??????????## #??#####gg #??????????????????????? | | ???????????# ???????# ?????????????????????? | | ???????????# ???????# ????????????????????? | | ???????????## ???????? ???????????????????? | | ????????????##???????? ###??????????????????? | | ?????????????????????# ##????????????????????? | | ?????????????????????# ####?????????????????????? | | ?????????????????????####????????????????????????? | | ?????????????????????????????????????????????????? | | ?????????????????????????????????????????????????? | | ?????????????????????????????????????????????????? | | ?????????????????????????????????????????????????? | | ?????????????????????????????????????????????????? | | ?????????????????????????????????????????????????? | | ?????????????????????????????????????????????????? | | ?????????????????????????????????????????????????? | | ?????????????????????????????????????????????????? | | ?????????????????????????????????????????????????? | | ?????????????????????????????????????????????????? | | ?????????????????????????????????????????????????? | | ?????????????????????????????????????????????????? | | ?????????????????????????????????????????????????? | +----------------------------------------------------+ Best States ------------- Heat Dissipation 64 Energy Generation 45 Energy Capacity 1100 Matter Stores 300 Matter Capacity 300 Sight Range 20 Robot Scan Range 16 Terrain Scan Density 10 Additional Mass Support 10 Evasion (%) 64 Melee Accuracy 6 Force Boost 6 Offensive Hacking 30 Defensive Hacking 10 Item Schematics ----------------- Hacking Suite | -8/Materials | Hacked System Shield | -8/Materials | Hacked Katana | -8/Materials | Hacked Adv. Sensor Array | -8/Materials | Hacked Adv. Signal Interpreter | -8/Materials | Hacked Imp. ECM Suite | -8/Materials | Hacked Imp. Cesium-ion Thruster | -7/Factory | Scanalyzed Force Booster | -7/Factory | Hacked Spear | -7/Factory | Hacked Robot Schematics ------------------ None Fabricated ------------ Adv. Sensor Array | x1 | -7/Factory Spear | x2 | -7/Factory Force Booster | x2 | -7/Factory Alien Tech Used ----------------- None Achievements -------------- None Challenges ------------ None Game ------ Seed StormArcInjector Manual? 0 Play Time 01:06:22 Cumulative 139.5 hours Start 2021.03.17 @ 13:39:40 End 2021.03.20 @ 12:49:32 Sessions 16 Manual Loads 0 Difficulty Rogue Special Mode None Game No. 112 Rogue 112 Adventurer 0 Explorer 0 Win Type - Total 1 Types 1/0/0/0/0/0/0/0/0 Lore% 44 Gallery% 60 Achievement% 47 Wizard Run 0 Options --------- ASCII 0 Keyboard 0 Movement Numpad Keybinds 0 Fullscreen 0 Font 16/CogWide Map View 76x50 Tactical HUD 1 Map Filters NONE Filters NONE Steam X RUN: 4bc4f17d-2174-4e49-98f6-c0b0894dd9ff